[Event "40th Cappelle Open 2024"]
[Site "Cappelle-la-Grande"]
[Date "2024.03.05"]
[Round "5.9"]
[White "Girel, Joseph"]
[Black "Fiedorek, Michal"]
[Result "1/2-1/2"]
[ECO "C77"]
[WhiteElo "2486"]
[BlackElo "2286"]
[Annotator "RC"]
[PlyCount "84"]
[EventDate "2024.03.02"]
[EventType "swiss"]
[EventCountry "FRA"]
[SourceTitle "playchess.com"]
[Source "ChessBase"]
[SourceQuality "1"]
[TimeControl "40/5400+30:1800+30"]

1. e4 {[%emt 0:00:04]} e5 {[%emt 0:00:06]} 2. Nf3 {[%emt 0:00:23]} Nc6 {[%emt 0:00:11]} 3. Bb5 {[%emt 0:00:24]} a6 {[%emt 0:00:12]} 4. Ba4 {[%emt 0:00:16]} Nf6 {[%emt 0:00:13]} 5. O-O {[%emt 0:01:22]} Be7 {[%emt 0:00:10]} 6. d3 {[%emt 0:01:27]} b5 {[%emt 0:01:02]} 7. Bb3 {[%emt 0:00:10]} O-O {[%emt 0:00:50]} 8. Nc3 {[%emt 0:02:26]} d6 {[%emt 0:00:42]} 9. a3 {[%emt 0:00:11]} Nb8 {[%emt 0:01:14]} 10. Ne2 {[%emt 0:12:46]} c5 {[%emt 0:06:02]} 11. Ng3 {[%emt 0:05:01]} Nc6 {[%emt 0:14:34]} 12. c3 {[%emt 0:06:30]} Be6 {[%emt 0:02:19]} 13. Bc2 {[%emt 0:03:32]} d5 {[%emt 0:04:23]} 14. Ng5 {[%emt 0:02:47]} Bg4 {[%emt 0:04:07]} 15. f3 {[%emt 0:00:28]} Bc8 {[%emt 0:01:03]} 16. f4 {[%emt 0:00:08]} dxe4 {[%emt 0:10:31]} 17. N3xe4 {[%emt 0:03:52]} Nxe4 {[%emt 0:07:17]} 18. Nxe4 {[%emt 0:00:19]} f5 {[%emt 0:01:29]} 19. Ng3 {[%emt 0:00:45]} Bd6 {[%emt 0:00:53]} 20. Qf3 {[%emt 0:08:48]} Qc7 {[%emt 0:01:16]} 21. b4 {[%emt 0:08:34]} cxb4 {[%emt 0:07:02]} 22. Bb3+ {[%emt 0:03:28]} Kh8 {[%emt 0:00:07]} 23. axb4 {[%emt 0:00:06]} Bb7 {[%emt 0:02:42]} 24. Qf2 {[%emt 0:06:55]} a5 {[%emt 0:11:10]} 25. bxa5 {[%emt 0:04:03]} Nxa5 {[%emt 0:00:47]} 26. Be6 {[%emt 0:02:18]} Rae8 {[%emt 0:09:33]} 27. Ba2 {[%emt 0:13:15]} exf4 {[%emt 0:03:28]} 28. Bxf4 {[%emt 0:02:53]} Bxf4 {[%emt 0:00:12]} 29. Qxf4 {[%emt 0:00:02]} Qxc3 {[%emt 0:00:22]} 30. Rac1 {[%emt 0:03:10]} Qxd3 {[%emt 0:06:29]} 31. Rc7 {[%emt 0:00:02]} Qe3+ {[%emt 0:04:19]} 32. Qxe3 {[%emt 0:00:10]} Rxe3 {[%emt 0:00:05]} 33. Rxf5 {[%emt 0:01:24]} Re1+ {[%emt 0:00:14]} 34. Kf2 {[%emt 0:00:57]} Ree8 {[%emt 0:00:07]} 35. Rcc5 {[%emt 0:05:24]} g6 {[%emt 0:01:18]} 36. Rxf8+ {[%emt 0:00:45]} Rxf8+ {[%emt 0:00:04]} 37. Ke3 {[%emt 0:00:29]} Re8+ {[%emt 0:01:24]} 38. Kf2 {[%emt 0:01:51]} Rf8+ {[%emt 0:00:43]} 39. Ke3 {[%emt 0:00:05]} Re8+ {[%emt 0:00:39]} 40. Kf2 {[%emt 0:00:09]} Bc6 {[%emt 0:00:37]} 41. Ne2 {[%emt 0:32:15]} Rf8+ {[%emt 0:09:10]} 42. Ke3 {[%emt 0:00:00]} Re8+ {[%emt 0:22:24]} 1/2-1/2

[Event "40th Cappelle Open 2024"]
[Site "Cappelle-la-Grande"]
[Date "2024.03.05"]
[Round "5.10"]
[White "Maisuradze, Nino"]
[Black "Roshka, Yevgeniy"]
[Result "0-1"]
[ECO "A41"]
[WhiteElo "2254"]
[BlackElo "2468"]
[Annotator "TA"]
[PlyCount "118"]
[EventDate "2024.03.02"]
[EventType "swiss"]
[EventCountry "FRA"]
[SourceTitle "playchess.com"]
[Source "ChessBase"]
[SourceQuality "1"]
[TimeControl "40/5400+30:1800+30"]

{[%evp 23,118,-26,-18,-49,-42,-93,-62,-64,-45,-77,-72,-70,-77,-77,-83,-85,-47,-88,-81,-75,-12,-10,-16,-8,-13,-7,-8,-6,-6,-5,-5,-13,-15,-20,5,-15,-8,-22,37,-60,0,-18,0,0,0,0,0,0,0,0,0,0,0,-143,-119,-120,-118,-145,-127,-154,-154,-291,-283,-292,-241,-276,-179,-190,-229,-254,-199,-285,-325,-393,-209,-395,-337,-377,-406,-403,-397,-398,-124,-120,0,-494,-484,-472,-437,-770,-771,-941,-980,-1119,-1112,-29996,-29997]} 1. d4 {[%emt 0:00:03]} g6 {[%emt 0:09:05]} 2. e4 {[%emt 0:01:07]} Bg7 {[%emt 0:00:07]} 3. c4 {[%emt 0:03:04]} d6 {[%emt 0:00:21]} 4. Nf3 {[%emt 0:01:59]} e5 {[%emt 0:00:07]} 5. Be2 {[%emt 0:04:53]} Nc6 {[%emt 0:00:14]} 6. Bg5 {[%emt 0:02:58] A41: 1 d4 d6: Tartakower System and Modern Defence.} f6 {[%emt 0:02:02]} 7. Be3 {[%emt 0:00:28]} Nh6 {[%emt 0:00:10]} 8. h3 {[%emt 0:00:29]} f5 {[%emt 0:08:52]} 9. d5 {[%emt 0:23:26]} Ne7 {[%emt 0:00:06]} 10. Nh2 $146 {[%emt 0:08:01]} ({Predecessor:} 10. Nc3 O-O 11. Ng5 f4 12. Bc1 Nef5 13. Nf3 Nd4 14. Nb5 Nxe2 15. Qxe2 a6 16. Nc3 {1-0 Arnelind,M (2167)-Poley,V (2290) Gothenburg Manhem 2014 (6)}) 10... Nf7 {[%emt 0:14:01]} 11. g4 {[%emt 0:03:50]} f4 {[%emt 0:05:23]} 12. Bc1 {[%emt 0:02:07]} h5 {[%emt 0:01:48]} 13. Nc3 {[%emt 0:09:07]} hxg4 $1 {[%emt 0:01:08]} 14. hxg4 {[%emt 0:10:54]} (14. Nxg4 $15 Ng8 15. Bd2) 14... Ng5 {[%emt 0:00:17]} 15. Kd2 {[%emt 0:08:16]} Ng8 {[%emt 0:03:12]} 16. Kc2 {[%emt 0:01:22]} Nf6 {[%emt 0:00:29]} 17. f3 {[%emt 0:00:26]} Kf7 {[%emt 0:01:04]} 18. Qg1 {[%emt 0:01:49]} Rh3 {[%emt 0:00:14]} 19. Bd2 {[%emt 0:02:17]} Bd7 {[%emt 0:02:31]} 20. Qf2 {[%emt 0:00:32]} Qh8 {[%emt 0:00:24]} 21. Rag1 {[%emt 0:02:22]} Qh4 {[%emt 0:02:09]} (21... c5 $17) 22. Qxh4 $11 {[%emt 0:00:58]} Rxh4 {[%emt 0:00:05]} 23. Nf1 {[%emt 0:01:12]} Rah8 {[%emt 0:00:05]} 24. Rxh4 {[%emt 0:00:06]} Rxh4 {[%emt 0:00:05]} 25. Be1 {[%emt 0:03:30]} Rh3 {[%emt 0:00:04]} 26. Nd2 {[%emt 0:00:09]} Rh2 {[%emt 0:00:25]} 27. Kd1 {[%emt 0:00:30]} Bf8 {[%emt 0:01:48]} 28. Rf1 {[%emt 0:01:22]} Nh3 {[%emt 0:00:18]} 29. b4 {[%emt 0:01:27]} Be7 {[%emt 0:00:33]} 30. a4 {[%emt 0:00:20]} Bd8 {[%emt 0:02:32]} (30... c6 $11) 31. a5 {[%emt 0:00:38]} (31. c5 $14) 31... Kg7 {[%emt 0:02:24]} ({Black should play} 31... c5 $15 32. dxc6 bxc6 (32... Bxc6 33. Nb3 $15)) 32. Nb3 {[%emt 0:00:47]} Nh7 {[%emt 0:02:54]} 33. c5 {[%emt 0:01:48]} N7g5 {[%emt 0:01:03]} 34. a6 {[%emt 0:01:47]} bxa6 {[%emt 0:01:19]} 35. c6 $1 {[%emt 0:00:14]} Bc8 {[%emt 0:00:31]} 36. Nd2 {[%emt 0:00:40]} Rg2 {[%emt 0:00:32]} 37. Rh1 {[%emt 0:01:21]} Ng1 {[%emt 0:00:46]} 38. Bf1 {[%emt 0:01:15]} (38. Bh4 $1 $11 {was the only way to keep the balance.}) 38... Rxd2+ $1 $17 {[%emt 0:00:04]} 39. Bxd2 {[%emt 0:00:05]} N1xf3 {[%emt 0:00:09]} 40. Kc1 {[%emt 0:01:58]} Nd4 {[%emt 0:07:01]} 41. Bd3 {[%emt 0:12:41]} Ngf3 {[%emt 0:00:34]} 42. Be1 {[%emt 0:00:51]} (42. Nb1 $17) 42... Nxe1 $19 {[%emt 0:02:53]} (42... Bxg4 43. Bf2 $17) 43. Rxe1 {[%emt 0:00:02]} Bh4 {[%emt 0:00:09]} 44. Rh1 {[%emt 0:00:46]} Bf2 {[%emt 0:00:27]} 45. Nd1 {[%emt 0:04:35]} Bg3 {[%emt 0:00:02]} 46. g5 {[%emt 0:10:59]} Nf3 {[%emt 0:00:29]} 47. Rf1 {[%emt 0:03:51]} (47. Nc3 {keeps fighting.}) 47... Nxg5 $19 {[%emt 0:00:13]} 48. Nf2 {[%emt 0:00:17]} Bh4 {[%emt 0:00:52]} (48... Nh7 $142 49. Kd2 Bxf2 50. Rxf2 g5) 49. Kc2 $2 {[%emt 0:00:21]} (49. Kd1) 49... Nf3 {[%emt 0:00:22]} 50. Be2 {[%emt 0:00:32]} Nd4+ {[%emt 0:01:53]} 51. Kd2 {[%emt 0:00:32]} f3 {[%emt 0:01:54]} 52. Bc4 {[%emt 0:00:48]} Bg5+ $2 {[%emt 0:00:29]} (52... Bg3 $19 {...g5 is the strong threat.} 53. Ke3 g5) 53. Kd3 $17 {[%emt 0:00:22]} Bh4 {[%emt 0:01:04]} (53... Be7 $17 {Hoping for ...Bg5.} 54. Rh1 Bg5) 54. Nd1 $2 {[%emt 0:00:11][%mdl 8192]} (54. Kd2 $1 $11 {and White stays safe.} Bg3 55. Ke3) 54... g5 $19 {[%emt 0:01:03]} (54... Bh3 55. Rh1 Ne2 56. Ke3 Bg5+ (56... Nf4 $2 57. Nf2 $18) 57. Kxf3 Nd4+ 58. Kg3 $16) 55. Ne3 {[%emt 0:00:31]} Kg6 {[%emt 0:00:24]} 56. Ra1 {[%emt 0:00:29]} (56. Rh1 $142 Kh5 57. Kd2) 56... g4 $19 {[%emt 0:00:10]} 57. Nxg4 {[%emt 0:00:58]} Bxg4 {[%emt 0:00:07]} 58. Rxa6 {[%emt 0:00:20]} Be1 {[%emt 0:02:53]} 59. Rxa7 {[%emt 0:00:45]} f2 {[%emt 0:57:40]} 0-1

[Event "40th Cappelle Open 2024"]
[Site "Cappelle-la-Grande"]
[Date "2024.03.05"]
[Round "5.11"]
[White "Wirig, Anthony"]
[Black "Degardin, Sylvain"]
[Result "1/2-1/2"]
[ECO "A01"]
[WhiteElo "2462"]
[BlackElo "2235"]
[Annotator "TA"]
[PlyCount "59"]
[EventDate "2024.03.02"]
[EventType "swiss"]
[EventCountry "FRA"]
[SourceTitle "playchess.com"]
[Source "ChessBase"]
[SourceQuality "1"]
[TimeControl "40/5400+30:1800+30"]

{[%evp 9,59,-19,-19,-22,-17,-26,-20,-21,0,0,2,-8,5,8,2,23,20,-13,21,2,-2,-13,10,0,0,0,0,0,0,0,0,0,0,0,0,0,0,0,0,0,0,0,0,0,0,0,7,0,0,0,0,0]} 1. b3 {[%emt 0:00:44]} g6 {[%emt 0:02:01]} 2. Bb2 {[%emt 0:00:38]} Nf6 {[%emt 0:00:15]} 3. Bxf6 {[%emt 0:03:02]} exf6 {[%emt 0:00:08]} 4. c4 {[%emt 0:00:04]} d5 {[%emt 0:00:36]} 5. cxd5 {[%emt 0:00:05]} Qxd5 {[%emt 0:00:11] White is weak on the dark squares} 6. Nc3 {[%emt 0:00:04]} Qa5 {[%emt 0:00:46]} 7. a3 {[%emt 0:00:13] Inhibits Bb4.} c6 {[%emt 0:00:46]} (7... Bxa3 $2 {loses.} 8. Nb1 $18) 8. e3 {[%emt 0:08:35]} f5 {[%emt 0:09:24][%cal Of8g7]} (8... Bxa3 $2 {perishes.} 9. Nb1 $18) 9. Nge2 {[%emt 0:10:18]} Bd6 {[%emt 0:01:34][%cal Oe8g8]} (9... Bxa3 $2 {is the wrong capture.} 10. Nb1 $18) 10. b4 {[%emt 0:13:18]} Qd8 {[%emt 0:04:54]} 11. g3 {[%emt 0:01:02]} O-O {[%emt 0:02:11]} 12. Bg2 {[%emt 0:01:30]} Qe7 {[%emt 0:02:24]} 13. Qb3 {[%emt 0:06:27] The position is equal.} Nd7 {[%emt 0:09:37]} 14. O-O {[%emt 0:03:18]} Nf6 {[%emt 0:03:24]} 15. d4 {[%emt 0:02:36]} a5 {[%emt 0:07:04][%cal Ra5b4]} 16. Rab1 {[%emt 0:13:14]} axb4 {[%emt 0:07:17]} 17. axb4 {[%emt 0:00:52]} Be6 {[%emt 0:00:57]} 18. d5 {[%emt 0:01:27]} Nxd5 {[%emt 0:01:00]} 19. Nxd5 {[%emt 0:00:33]} Bxd5 {[%emt 0:00:43]} 20. Bxd5 {[%emt 0:00:04]} cxd5 {[%emt 0:00:13]} 21. Rfd1 {[%emt 0:05:27]} Be5 {[%emt 0:09:38]} 22. Rxd5 {[%emt 0:00:50]} Rfd8 {[%emt 0:03:46]} 23. Rbd1 {[%emt 0:01:09]} Rxd5 {[%emt 0:02:58]} 24. Qxd5 {[%emt 0:00:30]} Rc8 {[%emt 0:05:35]} 25. Qd7 {[%emt 0:06:27]} Rc7 {[%emt 0:06:52]} 26. Qxe7 {[%emt 0:00:23]} Rxe7 {[%emt 0:00:02]} 27. Rd5 {[%emt 0:00:13]} Kf8 {[%emt 0:01:48]} 28. Rd8+ {[%emt 0:10:14]} Re8 {[%emt 0:01:31]} 29. Rd7 {[%emt 0:00:10]} Re7 {[%emt 0:00:06]} 30. Rd8+ {[%emt 0:00:20] An uneventful encounter.   Weighted Error Value: White=0.04 (flawless) /Black=0.04 (flawless) .  Inaccurate:     	White=1     	Black=1      OK:         	White=12    	Black=9} 1/2-1/2

[Event "40th Cappelle Open 2024"]
[Site "Cappelle-la-Grande"]
[Date "2024.03.05"]
[Round "5.12"]
[White "Derige Kane, Yan"]
[Black "Degraeve, Jean-Marc"]
[Result "0-1"]
[ECO "E73"]
[WhiteElo "2230"]
[BlackElo "2455"]
[Annotator "TA"]
[PlyCount "66"]
[EventDate "2024.03.02"]
[EventType "swiss"]
[EventCountry "FRA"]
[SourceTitle "playchess.com"]
[Source "ChessBase"]
[SourceQuality "1"]
[TimeControl "40/5400+30:1800+30"]

{[%evp 13,66,53,55,48,51,54,70,64,72,68,89,41,85,72,107,78,74,92,110,100,102,40,74,0,0,0,0,0,0,0,0,0,0,-43,0,0,0,0,0,-969,-962,-1156,-950,-1268,-1199,-1246,-1291,-1340,-1334,-1232,-1186,-29989,-29990,-29991,-29992]} 1. d4 {[%emt 0:08:44]} Nf6 {[%emt 0:00:06]} 2. c4 {[%emt 0:00:05]} g6 {[%emt 0:00:17]} 3. Nc3 {[%emt 0:00:07]} Bg7 {[%emt 0:00:05]} 4. e4 {[%emt 0:00:05]} d6 {[%emt 0:00:06]} 5. Be2 {[%emt 0:00:24]} O-O {[%emt 0:00:07]} 6. Be3 {[%emt 0:00:08]} e5 {[%emt 0:02:54]} 7. d5 {[%emt 0:00:26]} Na6 {[%emt 0:00:34]} 8. g4 $1 {[%emt 0:01:32]} Nc5 {[%emt 0:00:14]} 9. f3 {[%emt 0:03:02]} a5 {[%emt 0:02:40]} 10. h4 {[%emt 0:07:26] White is slightly better.} h5 {[%emt 0:00:26]} 11. g5 {[%emt 0:02:06]} Nh7 {[%emt 0:00:15]} 12. Kd2 {[%emt 0:18:22]} ({White should play} 12. Nh3 $16) 12... f6 {[%emt 0:02:13]} 13. gxf6 {[%emt 0:00:21]} Rxf6 {[%emt 0:02:18]} 14. Nh3 {[%emt 0:04:24]} Bxh3 {[%emt 0:00:09]} 15. Rxh3 {[%emt 0:00:08]} Rf4 {[%emt 0:03:59]} 16. Qg1 {[%emt 0:11:03]} Nf8 {[%emt 0:02:40]} 17. Rg3 {[%emt 0:09:11]} (17. Kc2 $16) 17... Qxh4 $14 {[%emt 0:03:42][%cal Og8h7]} (17... Rxh4 18. Bg5 Bf6 19. Bxh4 Bxh4 20. Rxg6+ Kf7 21. Rg7+ Ke8 22. f4 $18) 18. Bxf4 {[%emt 0:01:53]} (18. Rg2 $16) 18... exf4 $11 {[%emt 0:04:19]} 19. Rxg6 {[%emt 0:00:30]} Nxg6 {[%emt 0:00:46]} 20. Qxg6 {[%emt 0:00:01]} Qf6 {[%emt 0:03:45]} 21. Qxh5 {[%emt 0:01:57]} a4 {[%emt 0:00:42]} 22. Rh1 {[%emt 0:13:20]} a3 {[%emt 0:01:07] Really sharp!} 23. Qh7+ {[%emt 0:01:53]} Kf8 {[%emt 0:00:10]} 24. Rh5 {[%emt 0:00:29]} Qd4+ $1 {[%emt 0:01:02]} (24... axb2 25. Rf5 b1=N+ 26. Nxb1 Rxa2+ 27. Ke1 $18) 25. Kc2 {[%emt 0:00:46]} axb2 $40 {[%emt 0:03:49][%mdl 128] Black is up to no good.} 26. Rf5+ $2 {[%emt 0:03:01][%mdl 8192] [#] White is weak on the dark squares} (26. Nb1 $11 Ra4 (26... Rxa2 $2 {too greedy.} 27. Rf5+ Bf6 28. e5 $18) 27. Qf5+ Ke7 28. Qg5+ Bf6 29. Rh7+ Kf8 30. Qh6+ Bg7 31. Rh8+ Ke7 32. Qh4+ Qf6 33. Qxf6+ Bxf6 34. Rh7+ Kd8 35. a3) 26... Ke7 $19 {[%emt 0:01:05]} 27. e5 {[%emt 0:03:23]} b1=Q+ {[%emt 0:00:34]} 28. Kxb1 {[%emt 0:01:17]} Qg1+ {[%emt 0:00:04]} 29. Kc2 {[%emt 0:02:48]} Rh8 {[%emt 0:00:05]} 30. Rf7+ {[%emt 0:06:03]} Kxf7 {[%emt 0:00:05]} 31. Qf5+ {[%emt 0:00:12]} Ke7 {[%emt 0:00:12] [#] ( -> ...Rh1)} 32. e6 {[%emt 0:00:49]} Bf6 {[%emt 0:00:36]} ({Stronger than} 32... Bxc3 33. Qf7+ Kd8 34. e7+ (34. Kxc3 $2 {is a self mate.} Qc1+ 35. Kb4 Qb2+ 36. Ka5 b6#) 34... Kc8 35. e8=Q+ Rxe8 36. Qxe8#) 33. Ne4 {[%emt 0:00:19]} Nxe4 {[%emt 0:00:09] Weighted Error Value: White=0.53/Black=0.26 (precise) .  Loses game:     	White=1     	---        Mistake:       	White=3     	---        Inaccurate:     	White=1     	Black=3      OK:         	White=5     	Black=7      Best:        	White=3     	Black=3      Strong:       	---       	Black=1} 0-1

[Event "40th Cappelle Open 2024"]
[Site "Cappelle-la-Grande"]
[Date "2024.03.05"]
[Round "5.13"]
[White "Duboue, Peio"]
[Black "Grooten, Herman"]
[Result "1-0"]
[ECO "B10"]
[WhiteElo "2454"]
[BlackElo "2223"]
[Annotator "TA"]
[PlyCount "83"]
[EventDate "2024.03.02"]
[EventType "swiss"]
[EventCountry "FRA"]
[SourceTitle "playchess.com"]
[Source "ChessBase"]
[SourceQuality "1"]
[TimeControl "40/5400+30:1800+30"]

{[%evp 13,83,-14,-9,-14,-13,-16,-6,-14,-12,-24,-15,-25,-17,-7,-4,0,0,8,11,7,31,26,37,42,42,37,68,49,69,70,68,69,97,97,119,130,129,127,121,127,231,226,256,248,237,249,221,221,200,212,210,159,285,283,299,293,508,499,531,494,533,533,513,478,503,488,644,651,1313,1441,1509,1335]} 1. e4 {[%emt 0:00:03]} c6 {[%emt 0:00:13]} 2. c4 {[%emt 0:00:17]} d5 {[%emt 0:00:18]} 3. exd5 {[%emt 0:00:04]} cxd5 {[%emt 0:00:07]} 4. cxd5 {[%emt 0:00:05]} Nf6 {[%emt 0:00:21]} 5. Qa4+ {[%emt 0:00:04]} Nbd7 {[%emt 0:00:50]} 6. Nc3 {[%emt 0:00:06]} g6 {[%emt 0:00:28]} 7. Nf3 {[%emt 0:00:04]} Bg7 {[%emt 0:00:13][%mdl 1024] Black has compensation.} 8. Bc4 {[%emt 0:00:05]} O-O {[%emt 0:00:18]} 9. d3 {[%emt 0:00:09]} a6 {[%emt 0:04:38] [#] ...b5 would now be deadly.} 10. Qa3 {[%emt 0:00:05] The position is equal.} b6 {[%emt 0:00:38]} 11. O-O {[%emt 0:00:25]} Bb7 {[%emt 0:00:12]} 12. Re1 {[%emt 0:00:12]} b5 {[%emt 0:01:33]} 13. Bb3 {[%emt 0:00:05]} Re8 {[%emt 0:03:46]} 14. Be3 {[%emt 0:00:06]} Bf8 {[%emt 0:03:34]} 15. Qb4 {[%emt 0:04:19]} e6 {[%emt 0:04:10]} 16. Qf4 {[%emt 0:19:55] [#] dxe6 is the strong threat.} Nxd5 {[%emt 0:04:27]} (16... exd5 {keeps more tension.} 17. Bd4 Nh5 18. Qd2 Rxe1+ 19. Rxe1 Nc5) 17. Nxd5 {[%emt 0:00:06]} Bxd5 {[%emt 0:01:27]} 18. Bxd5 {[%emt 0:00:04]} exd5 {[%emt 0:00:10]} 19. Bd4 $40 {[%emt 0:00:09][%mdl 128] White is up to no good.} Rxe1+ {[%emt 0:14:28]} 20. Rxe1 {[%emt 0:00:06] Black must now prevent Ng5.} Qb8 {[%emt 0:01:01]} 21. Qxb8 {[%emt 0:06:46]} Rxb8 {[%emt 0:00:32]} 22. Rc1 $1 {[%emt 0:00:05] Against Rc8} Nb6 {[%emt 0:04:30] White stays focused until the end.} 23. Rc7 {[%emt 0:01:45]} Bg7 {[%emt 0:04:29]} 24. Bxg7 {[%emt 0:10:47]} Kxg7 $16 {[%emt 0:00:07][%mdl 4096] Endgame. KRN-KRN} 25. Ng5 {[%emt 0:05:45]} h6 {[%emt 0:10:43]} 26. Nxf7 {[%emt 0:01:08] White is more active.} Kf6 {[%emt 0:00:38] Dodges Ne5} (26... Rc8 $16 {keeps fighting.} 27. Rxc8 Nxc8) 27. Nxh6 $18 {[%emt 0:04:46]} Ke5 {[%emt 0:00:55]} 28. Kf1 {[%emt 0:07:25]} Kd4 {[%emt 0:02:45]} 29. Ke2 {[%emt 0:00:15]} Na4 {[%emt 0:02:01]} 30. Rc6 {[%emt 0:05:28]} Nxb2 {[%emt 0:02:05]} 31. Rxg6 {[%emt 0:00:10]} (31. Rxa6 Nxd3 32. h4 Re8+ 33. Kf3 Ne5+ 34. Kg3 Kc5 $11) 31... Nxd3 {[%emt 0:00:49] aiming for ...Nf4+.} 32. Nf5+ {[%emt 0:01:22]} (32. Rxa6 Re8+ 33. Kd2 Nxf2 $11) 32... Ke5 {[%emt 0:02:40]} (32... Ke4 $16 33. Nd6+ (33. Rxa6 $2 {loses.} Nf4+ 34. Kd2 Kxf5 $19) 33... Kd4 34. Rg4+ (34. Nf5+ Ke4 $16) 34... Nf4+ (34... Kc3 $2 35. Rg3 $18) 35. Rxf4+ Ke5) 33. Kxd3 {[%emt 0:00:17]} Kxf5 {[%emt 0:00:06]} 34. Rxa6 {[%emt 0:00:06] KR-KR} Ke5 $2 {[%emt 0:01:21]} (34... Rh8 35. h3 Rh4) 35. g3 {[%emt 0:05:13] White is clearly winning.} Rh8 {[%emt 0:08:01]} 36. f4+ {[%emt 0:00:32]} Kf5 {[%emt 0:00:09]} 37. Ke3 {[%emt 0:00:14]} Rc8 {[%emt 0:01:46]} 38. Rd6 {[%emt 0:02:16]} Rc3+ {[%emt 0:03:17]} 39. Kd4 {[%emt 0:01:17]} Rc2 {[%emt 0:01:42]} 40. Rxd5+ {[%emt 0:00:08]} ({Less strong is} 40. Kxd5 Rxh2 41. Rb6 Rxa2 $16) 40... Kg4 {[%emt 0:03:16]} 41. Rxb5 {[%emt 0:30:20]} Rxh2 {[%emt 0:30:14]} 42. Rg5+ {[%emt 0:00:06] Weighted Error Value: White=0.02 (flawless) /Black=0.30.  Mistake:       	---       	Black=3      Inaccurate:     	---       	Black=4      OK:         	White=20    	Black=12     Best:        	White=3     	---        Strong:       	White=1     	---} 1-0

[Event "40th Cappelle Open 2024"]
[Site "Cappelle-la-Grande"]
[Date "2024.03.05"]
[Round "5.14"]
[White "Zienkiewicz, Jan"]
[Black "Nikolov, Momchil"]
[Result "0-1"]
[ECO "B47"]
[WhiteElo "2218"]
[BlackElo "2453"]
[Annotator "TA"]
[PlyCount "70"]
[EventDate "2024.03.02"]
[EventType "swiss"]
[EventCountry "FRA"]
[SourceTitle "playchess.com"]
[Source "ChessBase"]
[SourceQuality "1"]
[TimeControl "40/5400+30:1800+30"]

{[%evp 9,69,22,41,10,25,17,13,14,20,0,0,-14,16,7,8,6,22,0,0,0,-4,-40,26,-17,-27,-17,-16,-18,0,0,0,1,0,0,0,0,0,0,0,0,0,0,0,0,0,-214,-200,-1204,-302,-29986,-29987,-29987,-29988,-29992,-29980,-29980,-29981,-29995,-29996,-29998,-29999,-29999]} 1. e4 {[%emt 0:00:04]} c5 {[%emt 0:00:06]} 2. Nf3 {[%emt 0:00:05]} e6 {[%emt 0:00:08]} 3. d4 {[%emt 0:00:11]} cxd4 {[%emt 0:00:08]} 4. Nxd4 {[%emt 0:00:06]} Nc6 {[%emt 0:00:08]} 5. Nc3 {[%emt 0:00:04]} Qc7 {[%emt 0:00:08]} 6. g4 {[%emt 0:00:12]} h6 {[%emt 0:04:42]} 7. Be3 {[%emt 0:15:21]} a6 {[%emt 0:00:32]} 8. f4 {[%emt 0:03:21] The position is equal.} b5 {[%emt 0:18:20]} 9. Nxc6 {[%emt 0:01:21]} Qxc6 {[%emt 0:01:36]} 10. Bg2 {[%emt 0:08:15]} Bb7 {[%emt 0:00:45]} 11. Rg1 {[%emt 0:05:41]} Rc8 {[%emt 0:06:45][%cal Of8a3]} 12. Qd3 {[%emt 0:11:59] White wants to play e5.} Qc4 {[%emt 0:02:12]} 13. Rd1 {[%emt 0:00:12]} d6 {[%emt 0:04:30]} 14. a3 {[%emt 0:03:45]} Nf6 {[%emt 0:06:26]} 15. Bf3 {[%emt 0:01:53]} h5 {[%emt 0:06:14]} (15... d5 $15) 16. h3 {[%emt 0:10:10]} (16. g5 {simplifies} Qxd3 17. Rxd3 Nd7 18. Kd1) 16... hxg4 {[%emt 0:00:35]} 17. hxg4 {[%emt 0:00:02]} Rh3 {[%emt 0:11:10]} 18. Kf2 {[%emt 0:00:59][%cal Be1f2,Bf2g2,Bg2f3,Bf3g3][%mdl 32]} b4 {[%emt 0:13:02]} 19. axb4 {[%emt 0:06:33]} Qxb4 {[%emt 0:00:27] aiming for ...d5.} 20. Kg2 {[%emt 0:01:32]} Rxf3 {[%emt 0:07:41]} 21. Kxf3 {[%emt 0:00:08]} Nxe4 $1 {[%emt 0:00:55]} 22. Nxe4 {[%emt 0:01:12]} f5 $1 {[%emt 0:00:23]} 23. gxf5 {[%emt 0:01:57]} exf5 {[%emt 0:00:02]} 24. Kg3 {[%emt 0:01:43]} Bxe4 {[%emt 0:00:17]} 25. Qxa6 {[%emt 0:03:54]} Rxc2 {[%emt 0:00:46]} 26. Rd4 {[%emt 0:05:02]} Qb3 {[%emt 0:00:46] Really sharp!} 27. Re1 {[%emt 0:05:03] White is weak on the light squares} (27. Qa4+ $11 {and White has nothing to worry.} Qxa4 28. Rxa4) 27... Kf7 $1 $19 {[%emt 0:02:24][%cal Ob3e6] ( -> ...Qe6!)} (27... Qxb2 28. Rxe4+ fxe4 29. Qa8+ Kd7 30. Qa4+ (30. Qxf8 {gets mated.} Rg2+ 31. Kh4 Rh2+ 32. Kg5 Qg2+ 33. Kf5 Rh5#) 30... Kc7 31. Qxe4 $16) (27... Rxb2 28. Qc8+ Kf7 29. Rxe4 fxe4 30. Qf5+ Kg8 31. Qxe4 $15) 28. Qa7+ $2 {[%emt 0:07:36]} (28. Rxe4 fxe4 29. Re2) 28... Be7 $2 {[%emt 0:04:10] A strong pair of Bishops.} (28... Bb7 {[%cal Of8e7] Strongly threatening ...Be7!} 29. Qb8 Rg2+ (29... Qxb2 30. Rd2 $15) (29... Rxb2 $2 30. Qc7+ Be7 31. Qc4+ Kf8 32. Qxb3 $17) 30. Kh3 Kg8 (30... Rxb2 31. Qc7+ Be7 32. Qc4+ Kf8 33. Qxb3 $17) (30... Qxb2 $2 31. Rd2 $19)) 29. Qd7 {[%emt 0:02:48] [#]} (29. Rxe4 $19 fxe4 30. Qd7 Qxb2 (30... Rxb2 31. Qf5+ Bf6 32. Qd7+ Be7 33. Qf5+ Bf6 34. Qd7+ Be7 $11) 31. Qf5+ Qf6 32. Qh5+ Qg6+ 33. Qxg6+ Kxg6 34. Kg4) 29... Rg2+ {[%emt 0:01:20] Black mates.} 30. Kh3 {[%emt 0:00:21]} Qxb2 {[%emt 0:02:02]} (30... Rf2 31. Rxe4 fxe4 32. Qf5+ Kg8 33. Qxe4 $11) 31. Rd2 {[%emt 0:03:17]} Rxd2 {[%emt 0:00:15]} 32. Bxd2 {[%emt 0:01:07]} Qxd2 {[%emt 0:00:15][%csl Ge4][%cal Rd2g2]} 33. Rg1 {[%emt 0:00:11]} Qd3+ {[%emt 0:01:27]} ({Weaker is} 33... Qxf4 34. Rxg7+ Kxg7 35. Qxe7+ Kg6 36. Qf7+ Kxf7 $11) 34. Rg3 {[%emt 0:00:24]} Qf1+ {[%emt 0:00:03]} 35. Kh2 {[%emt 0:00:05]} Qh1# {[%emt 0:00:38] Weighted Error Value: White=0.51/Black=0.16 (very precise) .  Loses game:     	White=1     	---        Mistake:       	White=2     	Black=2      Inaccurate:     	White=2     	Black=1      OK:         	White=9     	Black=8      Strong:       	---       	Black=3} 0-1